[Event "Swiss Championship U16 2022"]
[Site "Biel"]
[Date "2022.07.18"]
[Round "1.1"]
[White "Gemelli, Romain"]
[Black "Schellenberg, Simon"]
[Result "1/2-1/2"]
[ECO "E60"]
[WhiteElo "2045"]
[BlackElo "1899"]
[Annotator "TA"]
[PlyCount "74"]
[EventDate "2022.07.18"]
[EventType "swiss"]
[EventCountry "SUI"]
[SourceTitle "playchess.com"]
[Source "ChessBase"]
[SourceQuality "1"]
[TimeControl "5400+30"]

{[%evp 9,74,17,30,24,17,0,-28,-51,-56,-49,-41,-39,-36,-54,-58,-59,-48,-89,-77,-60,-65,-75,-78,-68,-35,-48,-57,-86,-61,-55,0,0,14,9,22,0,31,20,57,14,24,0,20,0,0,0,73,0,0,-118,163,162,178,169,168,112,122,105,131,99,89,0,100,0,108,0,108]} 1. d4 {[%emt 0:00:07]} Nf6 {[%emt 0:00:14]} 2. c4 {[%emt 0:00:06]} g6 {[%emt 0:00:04]} 3. h4 {[%emt 0:00:16]} Bg7 {[%emt 0:00:12]} 4. Nc3 {[%emt 0:00:00]} d5 {[%emt 0:00:07][%cal Bd7d5,Bd5d4][%mdl 32]} 5. h5 {[%emt 0:00:27]} O-O {[%emt 0:11:17]} ({Don't take} 5... gxh5 6. cxd5 c6 7. dxc6 $14 (7. e4 cxd5 8. e5 Ne4 $16)) 6. hxg6 {[%emt 0:12:00] E60: King's Indian: Unusual lines and Fianchetto Variation without Nc3.} hxg6 {[%emt 0:01:35]} 7. Bg5 {[%emt 0:09:43]} c5 {[%emt 0:09:08]} 8. dxc5 {[%emt 0:00:35][%cal Rc4d5] [#] Black has an edge.} d4 $146 {[%emt 0:04:13]} (8... Ne4 {looks sharper.} 9. Nxe4 dxe4 10. Qc1 Na6) ({Predecessor:} 8... Qa5 9. Qd2 d4 10. Bxf6 dxc3 11. Bxc3 Bxc3 12. Qxc3 Qxc3+ 13. bxc3 Be6 14. e3 Rc8 {1-0 (32) Azmaiparashvili,Z (2632)-Belov,V (2600) Playchess.com INT 2007}) 9. Bxf6 {[%emt 0:04:37]} Bxf6 {[%emt 0:03:29]} 10. Ne4 {[%emt 0:02:20]} Bg7 {[%emt 0:06:45][%mdl 1024] Black has compensation.} 11. Qd2 {[%emt 0:06:25]} Bf5 {[%emt 0:02:35]} 12. Ng3 {[%emt 0:00:10]} Be6 {[%emt 0:04:49]} 13. b3 {[%emt 0:07:10]} Qc7 {[%emt 0:07:11]} 14. Nf3 {[%emt 0:03:25]} Qxc5 {[%emt 0:03:14]} 15. Ne4 {[%emt 0:05:15]} Qb6 {[%emt 0:11:36]} 16. Neg5 {[%emt 0:04:04]} Bg4 {[%emt 0:02:20]} 17. Rd1 {[%emt 0:08:15]} Nc6 {[%emt 0:05:34]} 18. Rh4 {[%emt 0:01:08]} Bxf3 {[%emt 0:07:07]} 19. exf3 {[%emt 0:06:22]} Rad8 {[%emt 0:01:26]} (19... a5 $15) 20. Bd3 $11 {[%emt 0:05:21]} Qb4 {[%emt 0:03:37]} 21. f4 {[%emt 0:04:40]} e6 {[%emt 0:03:51]} 22. Nf3 {[%emt 0:05:17]} Qd6 {[%emt 0:01:34]} 23. Kf1 {[%emt 0:01:07]} Rfe8 {[%emt 0:03:01]} 24. Re1 {[%emt 0:03:50]} a5 {[%emt 0:05:41]} 25. Qe2 {[%emt 0:04:11]} a4 {[%emt 0:00:57]} 26. Ng5 {[%emt 0:03:43]} axb3 {[%emt 0:00:00]} 27. axb3 {[%emt 0:01:44] Black must now prevent Qg4.} Nb4 {[%emt 0:02:00] [#]} (27... Qe7 $1 $11) 28. f5 {[%emt 0:08:28]} ({White should play} 28. Nxf7 $1 $16 Kxf7 29. Bxg6+ Kf8 30. Bxe8 Rxe8 31. f5) 28... Nxd3 {[%emt 0:00:00]} 29. fxg6 {[%emt 0:00:00] [#]} (29. fxe6 $11 {was the only way to keep the balance.} f6 30. Nf7 Qxe6 31. Nxd8 Qxe2+ 32. Rxe2 Rxd8 33. Rhe4) 29... fxg6 $1 {[%emt 0:00:18][%mdl 8192]} 30. Qxd3 $40 {[%emt 0:00:28][%mdl 128] White has strong attack. Chess con chili.} e5 {[%emt 0:00:00]} 31. Ne4 {[%emt 0:00:30] Against Qf6} ({Don't do} 31. Qf3 $6 Qf6 32. Qg3 Qf5 $14) 31... Qe6 {[%emt 0:01:16] [#]} 32. Qg3 {[%emt 0:01:14]} (32. Rh3 $1 $18) 32... Qf5 $16 {[%emt 0:00:00]} 33. Rg4 {[%emt 0:00:31] White is more active.} Re6 {[%emt 0:00:41]} 34. Rg5 {[%emt 0:00:33]} Qf7 {[%emt 0:00:00]} 35. Rg4 {[%emt 0:00:31]} Qf5 {[%emt 0:00:00]} 36. Rg5 {[%emt 0:01:31]} Qf7 {[%emt 0:00:27]} 37. Rg4 {[%emt 0:01:03] Strongly threatening Ng5.} Qf5 $1 {[%emt 0:00:00] Weighted Error Value: White=0.27 (precise) /Black=0.20 (precise)} 1/2-1/2

[Event "Swiss Championship U16 2022"]
[Site "Biel"]
[Date "2022.07.18"]
[Round "1.2"]
[White "Palmonella, Valentin"]
[Black "Erne, Raphael"]
[Result "0-1"]
[ECO "B11"]
[WhiteElo "1778"]
[BlackElo "2060"]
[Annotator "TA"]
[PlyCount "66"]
[EventDate "2022.07.18"]
[EventType "swiss"]
[EventCountry "SUI"]
[SourceTitle "playchess.com"]
[Source "ChessBase"]
[SourceQuality "1"]
[TimeControl "5400+30"]

{[%evp 9,66,10,14,12,3,2,7,-13,-15,-6,4,-68,-52,-43,-35,-98,-53,-87,-87,-121,-124,-150,-164,-145,-133,-157,-141,-139,-133,-251,-252,-262,-273,-291,-208,-381,-293,-432,-302,-275,-152,-1012,-997,-1037,-982,-1516,-814,-797,-766,-29989,-29990,-29990,-29991,-29993,-29994,-29996,-29992,-29998,-29994]} 1. e4 {[%emt 0:00:03]} c6 {[%emt 0:00:06]} 2. Nc3 {[%emt 0:00:04]} d5 {[%emt 0:00:05]} 3. Nf3 {[%emt 0:00:04]} Nf6 {[%emt 0:00:05]} 4. e5 {[%emt 0:00:11]} Ne4 {[%emt 0:00:07]} 5. d4 {[%emt 0:00:25]} Nxc3 {[%emt 0:00:18]} 6. bxc3 {[%emt 0:00:07] B11: Caro-Kann: Two Knights Variation.} c5 {[%emt 0:00:06]} 7. c4 $1 {[%emt 0:01:19]} Nc6 {[%emt 0:01:08]} 8. c3 {[%emt 0:38:30] The position is equal.} cxd4 {[%emt 0:21:28]} 9. cxd4 {[%emt 0:06:22]} Bg4 {[%emt 0:03:05] [#]} 10. Bb2 $146 {[%emt 0:06:09]} (10. Rb1 $11) ({Predecessor:} 10. Rb1 Rb8 11. Be2 e6 12. O-O Be7 13. cxd5 Qxd5 14. Be3 O-O 15. Qa4 Rfd8 16. Rb5 Qd7 17. Rfb1 {0-1 (42) Peng,D (2287)-Brunner,N (2418) Chess.com INT 2020}) 10... e6 $1 $15 {[%emt 0:12:36]} 11. c5 {[%emt 0:04:48]} Be7 {[%emt 0:04:23]} 12. Qb3 {[%emt 0:03:10]} (12. Bc3 $15) 12... Qc7 {[%emt 0:05:11]} 13. Nd2 {[%emt 0:02:15]} O-O {[%emt 0:03:25]} 14. h3 {[%emt 0:06:54]} Bf5 {[%emt 0:02:06][%cal Bg4f5,Bf5g6,Bg6e8,Be8f7][%mdl 32]} 15. g4 {[%emt 0:01:08]} Bg6 {[%emt 0:01:28]} 16. h4 {[%emt 0:01:02]} f6 {[%emt 0:04:53][%cal Rf6e5]} 17. h5 {[%emt 0:08:04]} Be8 {[%emt 0:01:58][%cal Rf6e5]} 18. exf6 {[%emt 0:05:12]} Bxf6 {[%emt 0:08:01]} 19. Qe3 {[%emt 0:02:31]} (19. Nf3 $17 {was the only defense.}) 19... e5 $19 {[%emt 0:04:03][%cal Be6e5,Be5d4,Bd4d3][%mdl 32]} 20. Bg2 {[%emt 0:05:55]} exd4 {[%emt 0:04:26]} ({Don't blunder} 20... Nxd4 $2 21. Bxd5+ Kh8 22. O-O $19) 21. Qb3 {[%emt 0:01:26]} Bf7 {[%emt 0:04:11] White must now prevent ...Na5.} 22. O-O-O $2 {[%emt 0:01:11]} (22. O-O {keeps fighting.}) 22... Na5 {[%emt 0:01:40][%csl LRb3,LRc5]} 23. Qb4 {[%emt 0:00:59]} (23. Qb5 {was necessary.}) 23... Rac8 {[%emt 0:01:08] [#] aiming for ...b6.} 24. Kb1 {[%emt 0:01:39]} Qxc5 {[%emt 0:02:50]} (24... b6 $19 25. cxb6 axb6) 25. Qa4 $2 {[%emt 0:00:36]} (25. Qxc5 $17 Rxc5 26. Nb3 Nxb3 27. axb3) 25... d3 {[%emt 0:03:54] Threatens to win with ...Bxb2.} 26. Rc1 {[%emt 0:00:45]} Qb6 {[%emt 0:00:26][%csl Gf6][%cal Rb6b2]} 27. Nb3 {[%emt 0:00:22]} Bxb2 {[%emt 0:00:46]} 28. Rxc8 {[%emt 0:01:22]} Rxc8 {[%emt 0:00:31]} 29. Kxb2 {[%emt 0:01:00]} Qxf2+ {[%emt 0:00:21] Black mates.} 30. Ka3 {[%emt 0:00:21]} Nc4+ {[%emt 0:00:24]} 31. Kb4 {[%emt 0:00:07]} a5+ {[%emt 0:00:59]} 32. Nxa5 {[%emt 0:00:21]} Qc5+ {[%emt 0:00:23]} 33. Kb3 {[%emt 0:00:18]} Nxa5+ {[%emt 0:00:04] Black took control after the opening.  Weighted Error Value: White=0.76/Black=0.28 (precise)} 0-1

[Event "Swiss Championship U16 2022"]
[Site "Biel"]
[Date "2022.07.18"]
[Round "1.3"]
[White "Papaux, Steve"]
[Black "Kwiatkowski, Jakub"]
[Result "1/2-1/2"]
[ECO "C26"]
[WhiteElo "2031"]
[BlackElo "1770"]
[Annotator "TA"]
[PlyCount "91"]
[EventDate "2022.07.18"]
[EventType "swiss"]
[EventCountry "SUI"]
[SourceTitle "playchess.com"]
[Source "ChessBase"]
[SourceQuality "1"]
[TimeControl "5400+30"]

{[%evp 9,91,-4,-1,-2,0,-19,-8,-22,-16,-22,-14,-25,0,-22,-34,-39,-35,-33,-47,-77,-65,-104,-102,-111,-68,-131,-136,-133,-139,-173,-170,-171,-164,-193,-31,-29,-28,-24,-24,-20,-36,-31,-21,-19,-7,-68,-70,-61,-25,-31,-11,-68,-68,-55,-61,-229,-224,-210,-155,-179,-171,-166,-166,-168,-172,-186,-179,-197,-188,-414,-380,-403,-422,-391,-386,-327,-330,-310,-164,-160,-153,-160,-118,-121]} 1. a3 {[%emt 0:00:03]} e5 {[%emt 0:00:42]} 2. e4 {[%emt 0:00:05]} Nf6 {[%emt 0:05:11]} 3. Nc3 {[%emt 0:00:13]} Bc5 {[%emt 0:01:55]} 4. Nf3 {[%emt 0:00:15]} d6 {[%emt 0:00:51]} 5. Bc4 {[%emt 0:00:26]} c6 {[%emt 0:00:57]} 6. O-O {[%emt 0:00:50] C26: Vienna Game: 2...Nf6, sidelines .} O-O {[%emt 0:06:58]} 7. d4 {[%emt 0:05:55]} exd4 {[%emt 0:00:00]} 8. Nxd4 {[%emt 0:03:49] The position is equal.} Re8 $1 {[%emt 0:00:00] [#]} 9. b4 $146 {[%emt 0:02:40]} ({Predecessor:} 9. Bg5 Nbd7 10. Nf5 Ne5 11. Ba2 Bxf5 12. exf5 d5 13. h3 b5 14. Kh1 Qd6 15. Bf4 {0-1 (24) Langschmidt,D (1944)-Mantau,J (2049) Remote email 2014}) 9... Bb6 {[%emt 0:03:52]} 10. Be3 {[%emt 0:24:34]} Ng4 {[%emt 0:19:49][%cal Od6d5]} 11. h3 {[%emt 0:00:00]} Nxe3 {[%emt 0:04:47]} 12. fxe3 {[%emt 0:00:00]} Be6 {[%emt 0:06:04]} 13. Bxe6 {[%emt 0:00:20]} fxe6 {[%emt 0:00:17]} 14. Qf3 {[%emt 0:02:30] aiming for Qf7+.} Qe7 {[%emt 0:03:49] Against Qf7+} 15. Nce2 {[%emt 0:02:39][%cal Bc3e2,Be2f4,Bf4d3,Bd3e5,Be5f3,Bf3d2,Bd2b3][%mdl 32]} Nd7 {[%emt 0:13:51]} 16. Nf4 {[%emt 0:09:10]} Qf7 {[%emt 0:00:00]} 17. Qe2 {[%emt 0:07:45] [#]} ({White should play} 17. Nd3 $15 Qxf3 18. gxf3) 17... Nf6 $1 $17 {[%emt 0:00:19]} 18. Nd3 {[%emt 0:01:54]} Qg6 {[%emt 0:02:45]} 19. e5 {[%emt 0:08:52] [#]} dxe5 {[%emt 0:00:38]} 20. Nxe5 {[%emt 0:01:29]} Qe4 {[%emt 0:01:17][%csl LRd4,LRe5]} 21. Nef3 {[%emt 0:04:29]} e5 $2 {[%emt 0:01:39]} (21... Nd5 $19 {Hoping for ...e5.} 22. c4 Qxe3+ 23. Qf2 Qxf2+ 24. Rxf2 e5 25. cxd5 exd4) 22. Nd2 $1 $15 {[%emt 0:01:58] [#]} Qxe3+ {[%emt 0:05:31]} 23. Qxe3 {[%emt 0:00:00]} Bxd4 {[%emt 0:00:09]} 24. Qxd4 {[%emt 0:00:13]} exd4 {[%emt 0:00:12]} 25. Nb3 {[%emt 0:02:12]} d3 {[%emt 0:00:19]} 26. cxd3 {[%emt 0:00:00]} Re3 {[%emt 0:01:29]} 27. Rf3 {[%emt 0:00:00]} (27. Rfe1 $11 Rae8 28. Kf1) 27... Rxf3 {[%emt 0:00:43]} 28. gxf3 {[%emt 0:00:30][%mdl 4096] Endgame KRN-KRN} Re8 {[%emt 0:00:37]} (28... Rd8 $5 {[%cal Rd8d3]}) 29. Kf2 {[%emt 0:01:11]} Nd5 {[%emt 0:02:54]} 30. Re1 {[%emt 0:03:10]} (30. Na5 $11) 30... Rxe1 {[%emt 0:01:10]} 31. Kxe1 {[%emt 0:00:59] KN-KN} Nf4 {[%emt 0:00:14]} 32. d4 $2 {[%emt 0:00:32]} ({Better is} 32. Kf2 $15) 32... Nxh3 $19 {[%emt 0:00:05]} 33. Nc5 {[%emt 0:00:36]} Ng5 {[%emt 0:01:39]} 34. Ke2 {[%emt 0:00:00]} b6 {[%emt 0:01:51]} 35. Nd7 {[%emt 0:00:28]} Ne6 {[%emt 0:01:05]} 36. Ke3 {[%emt 0:01:19]} g6 {[%emt 0:01:01]} 37. Ne5 {[%emt 0:00:08]} Nd8 {[%emt 0:00:26]} 38. a4 {[%emt 0:01:36]} Kg7 {[%emt 0:01:39]} 39. b5 $2 {[%emt 0:00:18]} (39. Nc4 {is a better defense.}) 39... cxb5 {[%emt 0:00:00]} 40. axb5 {[%emt 0:00:48]} Kf6 {[%emt 0:02:14]} 41. Ke4 {[%emt 0:01:15]} Ke6 {[%emt 0:02:52]} 42. d5+ {[%emt 0:00:33]} Kd6 {[%emt 0:02:38]} 43. Kd4 {[%emt 0:02:23]} Kc7 {[%emt 0:00:28]} (43... g5 $142 {Strongly threatening ...h5.} 44. Nc4+ Ke7) 44. f4 {[%emt 0:01:55]} Kd6 {[%emt 0:00:51]} 45. Nc4+ {[%emt 0:00:55]} Ke7 {[%emt 0:00:47] ...Nf7 is the strong threat.} 46. Ne5 {[%emt 0:01:25] Weighted Error Value: White=0.28 (precise) /Black=0.16 (very precise)} 1/2-1/2

[Event "Swiss Championship U16 2022"]
[Site "Biel"]
[Date "2022.07.18"]
[Round "1.4"]
[White "Hirzel, Cedric"]
[Black "Kostov, Kyrill"]
[Result "0-1"]
[ECO "E90"]
[WhiteElo "1649"]
[BlackElo "2008"]
[Annotator "TA"]
[PlyCount "62"]
[EventDate "2022.07.18"]
[EventType "swiss"]
[EventCountry "SUI"]
[SourceTitle "playchess.com"]
[Source "ChessBase"]
[SourceQuality "1"]
[TimeControl "5400+30"]

{[%evp 17,62,26,40,14,32,-6,33,42,70,0,43,31,39,43,31,17,30,-32,-36,-40,-35,-35,8,0,8,8,8,0,-13,-39,-21,-61,-35,-96,-6,-81,-75,-98,-95,-91,16,-190,-181,-230,-232,-910,-897]} 1. d4 {[%emt 0:01:18]} Nf6 {[%emt 0:00:40]} 2. c4 {[%emt 0:01:55]} c5 {[%emt 0:01:37]} 3. d5 {[%emt 0:00:12]} b5 {[%emt 0:04:52]} 4. cxb5 {[%emt 0:03:21]} a6 {[%emt 0:02:46]} 5. bxa6 {[%emt 0:00:16]} g6 {[%emt 0:00:20]} 6. Nc3 {[%emt 0:00:40]} Bg7 {[%emt 0:00:31]} 7. e4 {[%emt 0:03:16]} O-O {[%emt 0:13:25]} 8. Nf3 {[%emt 0:13:31]} d6 {[%emt 0:01:30]} 9. h3 {[%emt 0:00:16]} Qa5 {[%emt 0:00:00]} 10. Bd2 {[%emt 0:02:04] E90: King's Indian: Classical: Early deviations and 6 h3.} (10. Nd2 $5 {[%cal Rd2c4]}) 10... Bxa6 {[%emt 0:04:22]} 11. Bxa6 {[%emt 0:08:25]} Nxa6 {[%emt 0:03:12]} 12. O-O {[%emt 0:00:00] White is slightly better.} Rfb8 {[%emt 0:09:16] [#]} 13. a3 $146 {[%emt 0:09:45]} (13. b3 $14) ({Predecessor:} 13. Rb1 Nd7 14. a4 Nb6 15. Be1 {½-½ (15) Chloupek,S (2335)-Horak,M (2325) Nymburk 1997}) 13... Nc7 {[%emt 0:07:31]} 14. Qc2 {[%emt 0:02:34]} Qb6 {[%emt 0:04:55]} 15. Rfb1 {[%emt 0:00:54]} Qb3 {[%emt 0:02:29] Prevents b4.} 16. Qxb3 {[%emt 0:03:12]} Rxb3 {[%emt 0:03:13]} 17. Bc1 {[%emt 0:05:54]} (17. a4 $11) 17... Nb5 $15 {[%emt 0:07:47]} 18. Nxb5 {[%emt 0:00:59]} Rxb5 {[%emt 0:00:42]} 19. Nd2 {[%emt 0:18:33][%cal Bf3d2,Bd2f1,Bf1e3][%mdl 32]} Rab8 {[%emt 0:05:37]} 20. f3 {[%emt 0:02:59]} e6 {[%emt 0:15:01]} 21. dxe6 {[%emt 0:00:48]} fxe6 {[%emt 0:04:21]} 22. Nf1 {[%emt 0:02:25]} Nd7 {[%emt 0:03:09][%cal Bf6d7,Bd7e5,Be5d3][%mdl 32]} 23. Ne3 {[%emt 0:05:57]} (23. a4 $5 {[%cal Ra4b5]} Rb3 24. a5 $11) 23... Ne5 {[%emt 0:03:30][%mdl 1024] Black has compensation.} ({Much less strong is} 23... Bxb2 24. Bxb2 Rxb2 25. Rxb2 Rxb2 26. Nc4 $16) 24. Ra2 {[%emt 0:07:19]} Nd3 {[%emt 0:00:48]} 25. Kf1 {[%emt 0:05:09]} (25. b4 $15) 25... Bh6 {[%emt 0:01:43]} ({Black should play} 25... Rb3 $17 26. Bd2 Nxb2) 26. Ke2 {[%emt 0:01:18]} (26. Bd2 $11 {remains equal.}) 26... Rb3 $36 {[%emt 0:00:51][%mdl 2048] Black is on the roll. Black is much more active. The white rooks are badly placed.} 27. Bd2 {[%emt 0:00:46]} Bxe3 {[%emt 0:01:05]} ({But not} 27... Nxb2 $6 28. Nd1 Nxd1 29. Rxb3 Rxb3 30. Kxd1 Bxd2 31. Rxd2 $11) 28. Bxe3 {[%emt 0:01:11] [#]} Nxb2 {[%emt 0:00:00]} (28... d5 $1 $17) 29. Bf4 $2 {[#]} (29. a4 $11 {and White is okay.}) 29... Nd3 $1 $19 {[%emt 0:02:56]} 30. Bxd6 {[%emt 0:00:18]} (30. Rxb3 $142 Nxf4+ 31. Ke3 Nxg2+ 32. Kf2 Rxb3 33. Kxg2) 30... Rxb1 {[%emt 0:00:00]} 31. Bxb8 $2 {[%emt 0:00:00]} (31. Kxd3 Rd1+ 32. Rd2 Rb3+ 33. Ke2 Rxd2+ 34. Kxd2) 31... Nc1+ {[%emt 0:00:35] Weighted Error Value: White=0.67/Black=0.21 (precise)} 0-1

[Event "Swiss Championship U16 2022"]
[Site "Biel"]
[Date "2022.07.18"]
[Round "1.5"]
[White "Kasipour Azbari, Seyed Arvin"]
[Black "Knapp, Yanik"]
[Result "1-0"]
[ECO "B22"]
[WhiteElo "1944"]
[BlackElo "1675"]
[Annotator "TA"]
[PlyCount "67"]
[EventDate "2022.07.18"]
[EventType "swiss"]
[EventCountry "SUI"]
[SourceTitle "playchess.com"]
[Source "ChessBase"]
[SourceQuality "1"]
[TimeControl "5400+30"]

{[%evp 12,67,8,13,23,10,27,23,29,20,23,25,24,17,27,31,39,13,38,0,0,0,-16,-24,-21,-24,-24,-13,-17,-117,-104,-104,0,0,0,-39,80,27,19,8,44,23,120,91,154,-350,947,578,519,266,262,278,284,258,429,429,439,450]} 1. e4 {[%emt 0:00:38]} c5 {[%emt 0:00:07]} 2. c3 {[%emt 0:00:07]} d5 {[%emt 0:00:08]} 3. exd5 {[%emt 0:00:06]} Qxd5 {[%emt 0:00:09]} 4. d4 {[%emt 0:00:15]} Nf6 {[%emt 0:00:09]} 5. Nf3 {[%emt 0:01:29]} e6 {[%emt 0:00:11]} 6. Na3 {[%emt 0:01:32]} Nc6 {[%emt 0:00:15]} 7. Be3 {[%emt 0:00:45] The modern move.} Ng4 {[%emt 0:01:24] B22: Sicilian: 2 c3.} 8. Bc4 {[%emt 0:02:53]} (8. Bg5 {is interesting.} Bd7 9. h3 Nf6 10. dxc5 Bxc5 11. Nc4) 8... Nxe3 {[%emt 0:04:27]} 9. fxe3 {[%emt 0:01:35]} Qd8 {[%emt 0:05:45] [#] White has an edge.} 10. d5 $146 {[%emt 0:01:12]} ({Predecessor:} 10. O-O Be7 11. e4 cxd4 12. cxd4 O-O 13. Kh1 a6 14. Nc2 b5 15. Bd3 f5 16. Qe2 {1-0 (37) Milliet,S (2407)-Botsari,A (2286) Novi Sad 2009}) 10... exd5 {[%emt 0:03:32]} 11. Bxd5 {[%emt 0:03:04] [#] Black must now prevent 0-0.} Be7 {[%emt 0:07:36]} 12. Qb3 {[%emt 0:08:33]} O-O {[%emt 0:02:51]} 13. O-O-O {[%emt 0:12:58] Strongly threatening Bxc6.} Qc7 {[%emt 0:10:15]} 14. Rhf1 {[%emt 0:09:14]} Bg4 {[%emt 0:07:03]} 15. h3 {[%emt 0:08:46]} Bh5 {[%emt 0:07:53]} 16. g4 {[%emt 0:05:04]} Bg6 {[%emt 0:00:33]} 17. h4 {[%emt 0:16:02]} h5 {[%emt 0:05:21]} 18. gxh5 {[%emt 0:04:15]} Bxh5 {[%emt 0:00:25]} 19. Qc2 $1 {[%emt 0:03:02]} Rad8 {[%emt 0:08:42][%cal Oc6d4]} 20. Qg2 {[%emt 0:04:39]} (20. Qe4 $11 {keeps the balance.}) 20... Bf6 $17 {[%emt 0:09:54]} 21. e4 {[%emt 0:05:17] [#]} Ne5 {[%emt 0:06:02]} ({Black should play} 21... Ne7 $1 $17 22. Nc2 Nxd5 23. exd5 Qf4+ 24. Rd2 Bg6) 22. Nxe5 $11 {[%emt 0:00:43]} Bxe5 {[%emt 0:06:46] A strong pair of Bishops.} 23. Rde1 {[%emt 0:01:31]} a6 {[%emt 0:05:22]} (23... Bg3 $15 {stays ahead.} 24. Rg1 Qf4+ 25. Kb1 Rxd5 26. Qxg3 Qxg3 27. Rxg3 Re8) 24. Qg5 {[%emt 0:02:04] White is more active.} ({Better is} 24. Nc4 $16 {Qg5 is the strong threat.} Bf4+ 25. Kb1) 24... g6 {[%emt 0:01:55]} 25. Nc4 $36 {[%emt 0:01:58][%mdl 2048] Black is under pressure.} Bg7 {[%emt 0:02:21]} 26. Ne3 {[%emt 0:02:06][%cal Oe3f5] Black should prevent Nf5!} Qe5 {[%emt 0:02:50] Prevents Nf5.} (26... Kh7 $1 $11) 27. Nf5 {[%emt 0:03:33][%cal Od5f7]} gxf5 {[%emt 0:01:07]} (27... Rd7 $142) 28. Rxf5 $2 {[%emt 0:00:27]} (28. Qxh5 $16 {is forced if you want to stay better.} f4 29. Qf3) 28... Qd6 $4 {[%emt 0:00:44][%mdl 8192]} 29. Qxh5 {[%emt 0:00:17] Intending Rg1 and mate.} Qh6+ {[%emt 0:00:36]} 30. Qxh6 {[%emt 0:00:04]} Bxh6+ {[%emt 0:00:06]} 31. Kc2 {[%emt 0:00:27] aiming for c4.} Rd7 {[%emt 0:00:37]} 32. Ref1 {[%emt 0:00:46] Hoping for c4.} Kg7 $2 {[%emt 0:00:41]} (32... Kh7 {was worth a try.} 33. a3 Re7) 33. c4 $18 {[%emt 0:00:17]} f6 {[%emt 0:00:32]} 34. e5 {[%emt 0:00:14] Weighted Error Value: White=0.54/Black=0.38} 1-0

[Event "Swiss Championship U16 2022"]
[Site "Biel"]
[Date "2022.07.18"]
[Round "1.6"]
[White "Sosnovski, Nikita"]
[Black "Zargarov, Mikayel"]
[Result "0-1"]
[ECO "B30"]
[WhiteElo "1584"]
[BlackElo "1994"]
[Annotator "TA"]
[PlyCount "52"]
[EventDate "2022.07.18"]
[EventType "swiss"]
[EventCountry "SUI"]
[SourceTitle "playchess.com"]
[Source "ChessBase"]
[SourceQuality "1"]
[TimeControl "5400+30"]

{[%evp 9,52,-7,0,-8,0,0,0,-43,-22,-47,-50,-47,-47,-45,-43,-42,-40,-43,-9,-49,37,41,33,26,30,10,9,2,13,0,0,0,58,-24,-11,-121,-122,-280,-253,-332,-346,-332,-301,-459,-452]} 1. e4 {[%emt 0:00:03]} c5 {[%emt 0:00:15]} 2. Nf3 {[%emt 0:00:07]} Nc6 {[%emt 0:00:04]} 3. Bb5 {[%emt 0:00:23]} e6 {[%emt 0:01:50]} 4. Bxc6 {[%emt 0:02:23]} bxc6 {[%emt 0:03:24]} 5. e5 {[%emt 0:03:07]} f6 {[%emt 0:07:26]} 6. O-O {[%emt 0:06:21] B30: Sicilian: 2...Nc6 3 Bb5, lines without ...g6.} fxe5 {[%emt 0:03:34]} 7. Nxe5 {[%emt 0:00:51] Hoping for Qh5+.} Nf6 {[%emt 0:08:25] Inhibits Qh5+.} 8. d4 {[%emt 0:20:57] The position is equal.} d6 {[%emt 0:08:29] [#]} 9. Ng4 $146 {[%emt 0:07:04]} ({Wrong is} 9. Nxc6 $2 Qc7 10. Qf3 Bb7 $19) ({Predecessor:} 9. Nf3 cxd4 10. Nxd4 e5 11. Re1 Be7 12. Nxc6 Qc7 13. Nxe7 Qxe7 14. Nc3 Bb7 15. Bg5 {1-0 (46) Abarca Gonzalez,N (2380)-Hakobyan,A (2615) Chess.com INT 2022}) 9... cxd4 {[%emt 0:10:51]} 10. Qxd4 {[%emt 0:08:24]} Be7 {[%emt 0:11:44]} 11. c4 {[%emt 0:15:54][%cal Oc4c5]} O-O {[%emt 0:05:59]} 12. Nc3 {[%emt 0:04:05]} Nxg4 {[%emt 0:00:14]} 13. Qxg4 {[%emt 0:01:05]} e5 {[%emt 0:05:53]} 14. Qe4 {[%emt 0:06:23]} Qc7 {[%emt 0:13:30]} (14... Qe8 $15) 15. Nd5 $1 $14 {[%emt 0:09:06]} Qd8 {[%emt 0:04:05]} 16. Nxe7+ {[%emt 0:00:34]} (16. c5 {with more complications.} Bh4 17. cxd6 Qxd6 18. Nc3) 16... Qxe7 {[%emt 0:01:24]} 17. Bd2 {[%emt 0:02:03]} Bb7 {[%emt 0:00:49]} 18. Qg4 {[%emt 0:04:19]} c5 {[%emt 0:01:27]} 19. Rae1 {[%emt 0:00:38]} Qf7 {[%emt 0:01:09]} 20. b3 {[%emt 0:02:28]} e4 {[%emt 0:02:42]} (20... Rae8 $11) 21. f4 {[%emt 0:01:00]} (21. Be3 $14) 21... exf3 $1 $11 {[%emt 0:03:29]} 22. Rf2 {[%emt 0:00:33]} (22. gxf3 $11 Rae8 23. h4) 22... Rae8 $17 {[%emt 0:01:36]} 23. Ref1 {[%emt 0:01:09] [#] This move loses the game for White.} (23. Rxe8 $17 Qxe8 24. gxf3) 23... Re6 $1 $19 {[%emt 0:03:12]} 24. Rxf3 {[%emt 0:01:46]} Bxf3 {[%emt 0:00:21]} 25. Rxf3 {[%emt 0:01:09]} Rf6 {[%emt 0:01:58]} 26. Rxf6 {[%emt 0:00:44]} (26. Bc3 $142 Rxf3 27. gxf3) 26... Qxf6 {[%emt 0:00:55] Weighted Error Value: White=0.54/Black=0.13 (very precise)} 0-1